Cogmind - Beta 15 @@@ ROGUE MODE // 2025.05.17 @ 02:30:30 // Winter2019/RPGLIKE Player: Toaster Result: Self-destructed Performance ------------- Evolutions (5) 2500 Regions Visited (5) 1000 Robots Destroyed (81) 405 Value Destroyed (3279) 3279 Prototype IDs (32) 640 Alien Tech Used (0) 0 Bonus (1597) 1597 TOTAL SCORE: 9421 Bonus ------- Follower Combat Kills 797 Registered with UFD 300 Met Optimus in HQ 500 Cogmind --------- Core Integrity 495/2000 Matter 212/300 Energy 490/490 System Corruption 3% Temperature Cool (0) Movement Walking (120) Location -5/Factory Parts ------- > --- POWER (1+1) ------ Improved Deuterium Engine Angular Momentum Engine (+) > --- PROPULSION (2+1) - Carbon-fiber Leg Improved Carbon-fiber Leg Armored Leg (+) > --- UTILITY (4) ------ Improved Hardlight Generator Long-range Tractor Beam Rainbow Chip > --- WEAPON (3) ------- Flak Gun Flak Gun Makeshift Shrapnel Gun > --- INVENTORY (1) ---- Makeshift Microdissipator Network Peak State ------------ > --- POWER ------------ Improved Deuterium Engine Angular Momentum Engine > --- PROPULSION ------- Improved Carbon-fiber Leg Improved Carbon-fiber Leg Armored Leg > --- UTILITY ---------- Kinecellerator Improved Hardlight Generator Long-range Tractor Beam Rainbow Chip > --- WEAPON ----------- Flak Gun Flak Gun Makeshift Shrapnel Gun > --- INVENTORY -------- Makeshift Microdissipator Network [Rating: 62] Favorites ----------- Power Light Nuclear Core Engine Angular Momentum Engine Power Core Light Nuclear Core Propulsion Improved Carbon-fiber Leg Leg Improved Carbon-fiber Leg Utility Rainbow Chip Device Kinecellerator Processor Rainbow Chip Protection Scrap Shield Weapon Flak Gun Energy Gun EM Pulse Gun Energy Cannon Plasma Cannon Ballistic Gun Flak Gun Launcher Grenade Launcher Build | -11 -10 -10 -7 -7 -5 ------- Run | Yrd Mat Sub Rec Scr Fac Slots Evolved 6 | 2 1 1 . . 2 Power . | . . . . . . Propulsion 1 | 1 . . . . . Utility 3 | . 1 1 . . 1 Weapon 2 | 1 . . . . 1 Parts Attached 43 | 5 8 6 15 6 3 Power 5 | 1 1 . 1 2 . Engine 3 | 1 . . . 2 . Core 2 | . 1 . 1 . . Reactor . | . . . . . . Propulsion 7 | 2 . . 3 1 1 Treads . | . . . . . . Leg 7 | 2 . . 3 1 1 Wheel . | . . . . . . Hover . | . . . . . . Flight . | . . . . . . Utility 17 | . 5 3 5 2 2 Device 12 | . 3 . 5 2 2 Storage . | . . . . . . Processor 2 | . 1 1 . . . Hackware . | . . . . . . Protection 3 | . 1 2 . . . Artifact . | . . . . . . Weapon 14 | 2 2 3 6 1 . Energy Gun 5 | . 2 . 3 . . Energy Cannon 2 | . . 1 1 . . Ballistic Gun 6 | 2 . 1 2 1 . Ballistic Cannon . | . . . . . . Launcher 1 | . . 1 . . . Special Weapon . | . . . . . . Impact Weapon . | . . . . . . Slashing Weapon . | . . . . . . Piercing Weapon . | . . . . . . Special Melee Weapon . | . . . . . . Unidentified Prototypes . | . . . . . . Corrupted Parts 1 | . . . 1 . . System Corruption 2 | . . . 2 . . Parts Lost 6 | . . . 3 2 1 Power 1 | . . . 1 . . Propulsion . | . . . . . . Utility 4 | . . . 1 2 1 Weapon 1 | . . . 1 . . Highest Loss Streak 2 | . . . 1 2 1 To Critical Strikes . | . . . . . . Average Backups . | . . . . . . Power . | . . . . . . Propulsion . | . . . . . . Utility . | . . . . . . Weapon . | . . . . . . Tool/Special . | . . . . . . Unused Backups . | . . . . . . Power . | . . . . . . Propulsion . | . . . . . . Utility . | . . . . . . Weapon . | . . . . . . Tool/Special . | . . . . . . Average Slot Usage (%) 87 | . 96 83 62 96 99 Engine 5 | . 1 . . 10 16 Core 7 | . 14 13 5 3 . Leg 24 | . 32 26 15 24 25 Device 14 | . 11 1 14 24 24 Processor 5 | . 1 . 8 8 8 Protection 3 | . . 13 1 . . Energy Gun 9 | . 15 22 4 . . Energy Cannon 1 | . . . 5 . . Ballistic Gun 14 | . 16 2 5 23 25 Peak Build Rating 62 | 5 12 25 44 59 62 Average Rating 33 | 3 9 13 35 56 60 On Entrance 23 | . 5 12 25 44 55 Naked Turns . | . . . . . . Heaviest Build 46 | 8 14 35 31 42 46 Greatest Support 62 | 25 31 30 46 62 62 Greatest Overweight (x) 2 | . . 1 2 . 1 Average Overweight (x) . | . . . . . . Largest Inventory Capacity 1 | 1 1 1 1 1 1 Average Capacity 1 | 1 1 1 1 1 1 Most Carried 1 | . 1 1 1 1 1 Average Carried . | . . . . . . Final Capacity 1 | 1 1 1 1 1 1 Final Carried 1 | . 1 1 1 . 1 Class Distribution -------------------- 52% | Mutant 20% | Commander-Gunner 12% | Gunner 11% | Commander-Mutant Dominant Class ---------------- Mutant | -10/Materials Mutant | -10/Subcaves Mutant | -7/Recycling Commander-Gunner | -7/Scraptown Gunner | -5/Factory Resources | -11 -10 -10 -7 -7 -5 ----------- Run | Yrd Mat Sub Rec Scr Fac Matter Collected 1960 | 247 287 242 222 380 582 Remotely 482 | . . . . . 482 Salvage Created 3400 | . 776 843 805 721 255 Parts 175 | . 52 45 27 34 17 Haulers Intercepted 1 | . 1 . . . . Recyclers Shooed 1 | . . . 1 . . Parts Field Recycled . | . . . . . . Retrieved Matter . | . . . . . . Parts Self-Destructed 10 | . . 10 . . . Prevented . | . . . . . . Kills | -11 -10 -10 -7 -7 -5 ------- Run | Yrd Mat Sub Rec Scr Fac Combat Hostiles Destroyed 69 | . 19 13 10 14 13 Guns 64 | . 17 13 7 14 13 Cannons 3 | . . . 3 . . AOE 2 | . 2 . . . . Classes Destroyed 22 | . 4 5 4 7 2 Builder 1 | . . . . . 1 Hauler 1 | . 1 . . . . Recycler 2 | . . . 2 . . Operator 1 | . 1 . . . . Turret 2 | . . 2 . . . Watcher 4 | . 3 . . . 1 Swarmer 2 | . . 1 . . 1 Grunt 25 | . 19 . 1 . 5 Brawler 2 | . . . . . 2 Duelist 1 | . . . . 1 . Sentry 5 | . . . 5 . . Demolisher 1 | . . . 1 . . Hunter 3 | . . . . . 3 Programmer 5 | . . . 3 . 2 Artisan 1 | . . 1 . . . Cobbler 1 | . . 1 . . . Subdweller 12 | . . 12 . . . Bolteater 1 | . . . . 1 . Federalist 1 | . . . . 1 . Explorer 1 | . . . . 1 . Scientist 1 | . . . . 1 . Scrapper 9 | . . . . 9 . Thug 1 | . . . . 1 . Savage 1 | . . . . 1 . Best Kill Streak 6 | . 6 3 5 6 4 Combat Bots Only 6 | . 6 2 5 5 3 Max Kills in Single Turn 3 | . 2 1 1 3 2 Gunslinging 1 | . . . . 1 . Exploded 2 | . 2 . . . . Melee . | . . . . . . Uniques/NPCs Destroyed . | . . . . . . Combat | -11 -10 -10 -7 -7 -5 -------- Run | Yrd Mat Sub Rec Scr Fac Hostile Shots Fired 665 | . 67 125 313 42 118 Missed 230 | . 15 57 117 15 26 Hits 435 | . 52 68 196 27 92 Melee 6 | . . . . 1 5 Projectile 429 | . 52 68 196 26 87 AOE 12 | . . 1 11 . . Critical Strikes 11 | . . 3 . 2 6 Damage Taken 5648 | . 598 1139 2078 492 1341 Core 4192 | . 484 658 1582 396 1072 Absorbed by Shields 580 | . . . . 166 414 Redirected to Core 3277 | . 368 528 1128 333 920 Regen/Repaired (Parts) 134 | . 26 . . . 108 Core Remaining (%) 80 | 100 . . . 60 . Volleys Fired 256 | . 62 91 42 20 41 Largest 3 | . 2 2 2 3 3 Hottest 130 | . 105 105 130 80 80 Shots Fired 558 | . 123 169 84 60 122 Gun 525 | . 123 163 57 60 122 Cannon 27 | . . . 27 . . Launcher 6 | . . 6 . . . Special . | . . . . . . Kinetic 307 | . 93 21 11 60 122 Thermal 105 | . 2 62 41 . . Explosive 6 | . . 6 . . . Electromagnetic 140 | . 28 80 32 . . Robot Hit Streak 43 | . 12 43 29 9 11 Robot Miss Streak 9 | . 3 2 2 6 9 Penetration Max . | . . . . . . Secondary Targets 10 | . 2 1 . 4 3 Max Gunslinging Chain 1 | . 1 1 . 1 1 Shots Hit Robots 445 | . 83 134 64 54 110 Core Hits 295 | . 45 49 21 67 113 Critical Kills . | . . . . . . Critical Parts Destroyed 1 | . . . 1 . . Critical Strikes 8 | . . 5 3 . . Burn 4 | . . 4 . . . Destroy 1 | . . . 1 . . Corrupt 3 | . . 1 2 . . Melee Attacks . | . . . . . . Impact . | . . . . . . Slashing . | . . . . . . Piercing . | . . . . . . Sneak Attacks . | . . . . . . Combat Hostiles . | . . . . . . Follow-up Attacks . | . . . . . . Damage Inflicted 7730 | . 1125 1878 1477 1083 2167 Guns 6868 | . 1014 1828 776 1083 2167 Cannons 591 | . . . 591 . . Explosions 261 | . 106 50 105 . . Melee . | . . . . . . Ramming 10 | . 5 . 5 . . Kinetic 4497 | . 755 274 218 1083 2167 Thermal 1823 | . 106 801 916 . . Explosive 50 | . . 50 . . . Electromagnetic 1350 | . 259 753 338 . . Impact . | . . . . . . Slashing . | . . . . . . Piercing . | . . . . . . Highest Corruption 8 | . . . 8 5 3 Average Corruption 5 | . . . 5 5 2 Corruption Purged . | . . . . . . Corruption Blocked . | . . . . . . Effects 40 | . . . 36 1 3 Message Errors 10 | . . . 9 1 . Matter Fused 6 | . . . 6 . . Heat Flow Errors 6 | . . . 6 . . Energy Discharges 6 | . . . 5 . 1 Parts Rejected 1 | . . . . . 1 Data Loss (minor) 7 | . . . 6 . 1 Data Loss (major) 2 | . . . 2 . . Misfires 1 | . . . 1 . . Alerts 1 | . . . 1 . . Overload Shots . | . . . . . . Overflow Damage 33 | . . . 33 . . Projectiles 17 | . . . 17 . . Explosions 16 | . . . 16 . . Melee . | . . . . . . Knockbacks . | . . . . . . Impact . | . . . . . . Kinetic . | . . . . . . Secondary . | . . . . . . Self-Inflicted Damage 30 | . . . 30 . . Shots 1 | . . . 1 . . Rammed . | . . . . . . Targets Rammed 6 | . 2 . 3 . 1 Kicked 6 | . 2 . 3 . 1 Crushed . | . . . . . . Highest Temperature 336 | . 160 33 336 195 6 Average Temperature 68 | . 39 10 99 72 6 Received Heat Transfer 1498 | . 327 372 348 289 162 Siege Activations . | . . . . . . Martial Activations . | . . . . . . Shielding Activations . | . . . . . . Robots Disrupted 2 | . 2 . . . . Combat Hostiles 2 | . 2 . . . . Robots Corrupted . | . . . . . . Combat Hostiles . | . . . . . . Parts Fried 2 | . 1 . 1 . . Impact Corruptions . | . . . . . . Robots Melted . | . . . . . . Combat Hostiles . | . . . . . . Parts Melted 3 | . . 1 1 1 . Heat Transferred 3733 | . 50 2183 1500 . . Parts Sabotaged . | . . . . . . Parts Stolen . | . . . . . . Parts Stripped . | . . . . . . Power Chain Reactions 3 | . 1 . 2 . . Alert | -11 -10 -10 -7 -7 -5 ------- Run | Yrd Mat Sub Rec Scr Fac Maximum Alert Level . | . . . . . . Low Security (%) 100 | 100 100 . 100 . 100 Level 1 . | . . . . . . Level 2 . | . . . . . . Level 3 . | . . . . . . Level 4 . | . . . . . . Level 5 . | . . . . . . High Security . | . . . . . . Max Security . | . . . . . . Peak Influence 188 | . 188 . 176 . 118 Initial 176 | . . . 176 . . Average 64 | . 92 . 57 . 35 Influence Increases 1897 | . 605 600 366 . 326 Destroy 0b10 Robot/C 900 | . 380 60 200 . 260 Destroy 0b10 Robot/NC 45 | . 25 . 10 . 10 Destroy Leader 140 | . 98 . . . 42 Successful Hack 75 | . 21 . 40 . 14 Select Force Hacks 120 | . 60 . 60 . . Disable Machine 45 | . 15 . 30 . . Destroy Structure 17 | . 6 . 11 . . Lose Combat Pursuer 555 | . . 540 15 . . Influence Decreases 1825 | . 510 327 734 . 254 Entered New Map 239 | . . 47 192 . . Time Decay 1546 | . 510 280 512 . 244 Lost Part 40 | . . . 30 . 10 Squads Dispatched 10 | . 6 . . . 4 Investigation 6 | . 5 . . . 1 Extermination 1 | . . . . . 1 Reinforcement 3 | . 1 . . . 2 Assault . | . . . . . . Garrison . | . . . . . . Intercept . | . . . . . . Searches Triggered . | . . . . . . Construction Impeded . | . . . . . . Haulers Reinforced . | . . . . . . Active Scanning Responses . | . . . . . . Cargo Convoy Interrupts . | . . . . . . Stealth | -11 -10 -10 -7 -7 -5 --------- Run | Yrd Mat Sub Rec Scr Fac Distress Signals 1 | . 1 . . . . Communications Jammed . | . . . . . . Distress Signals . | . . . . . . Times Spotted 134 | . 28 40 12 38 16 Peak Tracking Total 9 | . 5 3 6 9 3 Tactical Retreats 5 | . . 4 1 . . Traps | -11 -10 -10 -7 -7 -5 ------- Run | Yrd Mat Sub Rec Scr Fac Traps Triggered 5 | . 2 . . . 3 Indirectly . | . . . . . . Trap Hack Attempts . | . . . . . . Triggered . | . . . . . . Disarmed . | . . . . . . Reprogrammed . | . . . . . . Reused . | . . . . . . Traps Extracted . | . . . . . . Installed . | . . . . . . Triggered . | . . . . . . Machines | -11 -10 -10 -7 -7 -5 ---------- Run | Yrd Mat Sub Rec Scr Fac Machines Disabled 8 | . 1 3 2 2 . Max in Single Turn 1 | . 1 1 1 . . Machines Repaired . | . . . . . . Machines Dismantled . | . . . . . . Machines Sabotaged . | . . . . . . Overloaded Fab Kills . | . . . . . . Hacking | -11 -10 -10 -7 -7 -5 --------- Run | Yrd Mat Sub Rec Scr Fac Machines Accessed 27 | . 10 2 10 3 2 Terminals 14 | . 7 . 6 . 1 Fabricators . | . . . . . . Repair Stations 2 | . 1 . . . 1 Recycling Units 6 | . 2 . 4 . . Scanalyzers . | . . . . . . Garrison Access . | . . . . . . Total Hacks 77 | . 24 5 24 21 3 Successful 54 | . 11 5 15 21 2 Failed 23 | . 13 . 9 . 1 Catastrophic 2 | . . . 2 . . Database Lockouts . | . . . . . . Manual 29 | . 17 . 10 . 2 Terminals 34 | . 19 . 14 . 1 Fabricators . | . . . . . . Repair Stations 4 | . 2 . . . 2 Recycling Units 13 | . 3 . 10 . . Scanalyzers . | . . . . . . Garrison Access . | . . . . . . Terminal Hacks 31 | . 2 5 3 21 . Record 19 | . . 4 . 15 . Robot Analysis 5 | . . . . 5 . Prototype ID Bank 4 | . 1 . 3 . . Hauler Manifests 1 | . 1 . . . . Proto ID Catalog 2 | . . 1 . 1 . Fabricator Hacks . | . . . . . . Repair Station Hacks 2 | . 2 . . . . Scan Component 1 | . 1 . . . . Repair 1 | . 1 . . . . Recycling Unit Hacks 7 | . 1 . 6 . . Report Inventory 5 | . 1 . 4 . . Retrieve Components 2 | . . . 2 . . Scanalyzer . | . . . . . . Garrison Access Hacks . | . . . . . . Unauthorized Hacks 14 | . 6 . 6 . 2 Terminals 9 | . 4 . 4 . 1 Botnet 9 | . 4 . 4 . 1 Fabricators . | . . . . . . Repair Stations 1 | . . . . . 1 Patch 1 | . . . . . 1 Recycling Units 4 | . 2 . 2 . . Tunnel 4 | . 2 . 2 . . Scanalyzers . | . . . . . . Garrison Access . | . . . . . . Data Cores Recovered . | . . . . . . Used . | . . . . . . Hacking Detections 12 | . 5 . 5 . 2 Full Trace Events 6 | . 3 . 3 . . Feedback Events 1 | . . . 1 . . Corruption 1 | . . . 1 . . Feedback Blocked . | . . . . . . Robot Schematics Acquired . | . . . . . . Robots Built . | . . . . . . Authchips . | . . . . . . Time . | . . . . . . Total Robot Build Rating . | . . . . . . Part Schematics Acquired . | . . . . . . Parts Built . | . . . . . . Authchips . | . . . . . . Time . | . . . . . . Total Part Build Rating . | . . . . . . Parts Repaired 1 | . 1 . . . . Time 19 | . 19 . . . . Parts Recycled . | . . . . . . Recycled Matter . | . . . . . . Retrieved Matter . | . . . . . . Retrieved Components 4 | . . . 4 . . Parts Scanalyzed . | . . . . . . Part Schematics Acquired . | . . . . . . Parts Damaged . | . . . . . . Bothacking | -11 -10 -10 -7 -7 -5 ------------ Run | Yrd Mat Sub Rec Scr Fac Used RIF Installer . | . . . . . . Robots Hacked . | . . . . . . Non-combat . | . . . . . . Combat . | . . . . . . Robot Hacks Applied . | . . . . . . Relay Couplers Released . | . . . . . . Fabnet Peak Effective % . | . . . . . . Robots Rewired 16 | . . . 16 . . Allies Hacked . | . . . . . . Hacks Repelled . | . . . . . . Allies | -11 -10 -10 -7 -7 -5 -------- Run | Yrd Mat Sub Rec Scr Fac Total Allies 16 | . . . 16 . . Largest Group 16 | . . . 16 16 1 Highest-Rated Group 368 | . . . 368 368 40 Highest-Rated Ally 40 | . . . 40 40 40 Total Orders . | . . . . . . Ally Attacks 120 | . . . . 120 . Total Damage 2290 | . . . . 2290 . Kills 24 | . . . . 24 . Allies Corrupted . | . . . . . . Allies Melted 6 | . . . . 6 . Intel | -11 -10 -10 -7 -7 -5 ------- Run | Yrd Mat Sub Rec Scr Fac Active Infowar (turns) 190 | . 190 . . . . Optics 190 | . 190 . . . . Robot Analysis Total 5 | . . . . 5 . Derelict Logs Recovered 2 | . . 1 . 1 . Drone Launches . | . . . . . . Drone Recoveries . | . . . . . . Exploration | -11 -10 -10 -7 -7 -5 ------------- Run | Yrd Mat Sub Rec Scr Fac Turns Passed 8875 | 63 1641 2128 1704 2278 1061 Spaces Moved 6107 | 53 1077 1449 1091 1775 662 Core 14 | 11 . . 3 . . Treads . | . . . . . . Legs 6093 | 42 1077 1449 1088 1775 662 Wheels . | . . . . . . Hover . | . . . . . . Flight . | . . . . . . Fastest Speed 50 | 50 120 120 120 120 120 Average Speed 119 | 105 120 120 120 120 120 Slowest Speed 190 | 120 120 190 190 120 190 Overloaded Moves . | . . . . . . Propulsion Burnouts . | . . . . . . Robots Hopped . | . . . . . . Potential Cave-ins . | . . . . . . Cave-ins Triggered . | . . . . . . Exploration Rate (%) 58 | 4 93 54 99 90 11 Regions Visited 5 Branch Regions 3 Pre-discovered Areas 6 | . 2 1 2 1 . Known Exits Taken . | . . . . . . Unknown Exits Taken 5 | 1 1 1 1 1 . Scrap Searched 4 | . . . . 4 . Spaces Dug . | . . . . . . Terrain Destroyed 55 | . 4 36 15 . . Melee . | . . . . . . Projectile 4 | . . . 4 . . AOE 51 | . 4 36 11 . . Terrain Rammed . | . . . . . . Walls Destroyed . | . . . . . . Machines Disabled . | . . . . . . Actions | -11 -10 -10 -7 -7 -5 --------- Run | Yrd Mat Sub Rec Scr Fac Total 7137 | 57 1308 1665 1397 1877 833 Wait 380 | . 120 77 67 12 104 Move 6102 | 52 1076 1448 1090 1774 662 Hop . | . . . . . . Pick Up 5 | . 2 1 2 . . Fast Attach 46 | 5 8 6 14 7 6 Attach 2 | . . . 1 1 . Detach 6 | . 2 . 1 2 1 Swap 10 | . 1 7 2 . . Drop 28 | . 5 7 11 4 1 Fire 256 | . 62 91 42 20 41 Melee . | . . . . . . Ram . | . . . . . . Kick 6 | . 2 . 3 . 1 Crush . | . . . . . . Escape Stasis . | . . . . . . Rewire 157 | . . 1 156 . . Trap . | . . . . . . Miscellaneous 139 | . 30 27 8 57 17 Route ------- -11/Scrapyard -10/Materials (discovered 5 exits: [*Mat x3] / [*Min] / *Sub) -10/Subcaves (discovered 4 exits: [*Mat x2] / *Rec / *Scr) -7/Recycling (discovered 2 exits: *Fac / *Scr) -7/Scraptown (discovered 2 exits: *Fac x2) -5/Factory History --------- Turn | Location | Event 1 | -11/Scrapyard | Upgraded with Propulsion slot (x1) 1 | -11/Scrapyard | Upgraded with Weapon slot (x1) 5 | -11/Scrapyard | Discovered new exit (range 15) 64 | -11/Scrapyard | Entered Materials 331 | -10/Materials | Build established: Mutant 346 | -10/Materials | Discovered new exit (range 8) 757 | -10/Materials | Discovered new exit (range 16) 790 | -10/Materials | Reached level 2 994 | -10/Materials | Discovered new exit (range 13) 1069 | -10/Materials | Discovered new exit (range 15) 1319 | -10/Materials | Repaired Imp. Heat Sink 1587 | -10/Materials | Upgraded with Utility slot (x1) 1675 | -10/Materials | Discovered new exit (range 15) 1705 | -10/Materials | Entered Subcaves 1706 | -10/Subcaves | Approached by a straggling Scientist 1707 | -10/Subcaves | Reached level 3 1742 | -10/Subcaves | A swath of the cavern ceiling suddenly collapsed 1775 | -10/Subcaves | Discovered new exit (range 14) 1791 | -10/Subcaves | Learned Materials terminal intel 2026 | -10/Subcaves | Visited Clippyterm 2030 | -10/Subcaves | Learned location of Deep Caves (-6) 2444 | -10/Subcaves | Ambushed by Subdweller buried in earth 2640 | -10/Subcaves | Discovered new exit (range 10) 2859 | -10/Subcaves | Scientist uncovered a shortcut to Scraptown 2954 | -10/Subcaves | A swath of the cavern ceiling suddenly collapsed 2993 | -10/Subcaves | Core integrity fell below 50% 3048 | -10/Subcaves | Shifting Twisted Machinery released Mak. Sword 3113 | -10/Subcaves | Ambushed by Subdwellers from Twisted Machinery 3373 | -10/Subcaves | Discovered new exit (range 8) 3563 | -10/Subcaves | Visited 4L-MR0's lab 3591 | -10/Subcaves | Upgraded with Utility slot (x1) 3593 | -10/Subcaves | Found Rainbow Chip 3595 | -10/Subcaves | Attached Rainbow Chip, gained temporary slots: Power, Propulsion, Utility, Weapon 3833 | -10/Subcaves | Entered Recycling 3835 | -7/Recycling | Reached level 4 3885 | -7/Recycling | Scanned before Scraplab entrance 3903 | -7/Recycling | Entered Scraplab 4074 | -7/Recycling | Core integrity fell below 20% 4134 | -7/Recycling | Lost 3 allies 4553 | -7/Recycling | Reached level 5 4645 | -7/Recycling | Discovered new exit (range 8) 5215 | -7/Recycling | Build established: Commander-Mutant 5492 | -7/Recycling | Discovered new exit (range 3) 5537 | -7/Recycling | Entered Scraptown 5537 | -7/Scraptown | Accompanied by 16 allies 5537 | -7/Scraptown | System corruption cleaned by C-Scrubber 5677 | -7/Scraptown | Heard Great Nut preacher, LISTEN AND RECITE! 5787 | -7/Scraptown | Visited The Evicted 6061 | -7/Scraptown | Visited Fellowship of the Rings 6103 | -7/Scraptown | Visited Cyclists 6166 | -7/Scraptown | Visited Red Mages 6208 | -7/Scraptown | Build established: Commander-Gunner 6251 | -7/Scraptown | Visited Assassins FH 6273 | -7/Scraptown | Visited SPCMW 6331 | -7/Scraptown | Scanned Subdweller tech in exchange for log data 6335 | -7/Scraptown | Learned location of Extension (-4) 6355 | -7/Scraptown | Discovered new exit (range 11) 6494 | -7/Scraptown | Visited Bundlers 6588 | -7/Scraptown | Visited UFD Registry 6588 | -7/Scraptown | Registered with UFD as "Thermoparser" 6635 | -7/Scraptown | Visited Derelict Rescue Squad 6680 | -7/Scraptown | Visited LU-1G1's Boring Crew 6707 | -7/Scraptown | Visited Abandonware Association 6769 | -7/Scraptown | Visited Junk Repository 6803 | -7/Scraptown | Visited Analyses Database 6842 | -7/Scraptown | Visited Infowarlord's Domain 6865 | -7/Scraptown | Visited Science Guys 6915 | -7/Scraptown | Visited Scrap Suit Storage 6961 | -7/Scraptown | Visited Scrapoid Pod Storage 6980 | -7/Scraptown | Visited Botcube Research 7344 | -7/Scraptown | Discovered new exit (range 5) 7428 | -7/Scraptown | Met Optimus 7428 | -7/Scraptown | Reached level 6 7428 | -7/Scraptown | Accepted into 0bPrime 7520 | -7/Scraptown | Civil war broke out across Scraptown 7637 | -7/Scraptown | Lost 14 allies 7815 | -7/Scraptown | Entered Factory 7815 | -5/Factory | Accompanied by 1 ally 7817 | -5/Factory | Reached level 7 7817 | -5/Factory | Lost 6 allies 7832 | -5/Factory | Upgraded with Utility slot (x1) 7854 | -5/Factory | Upgraded with Weapon slot (x1) 8048 | -5/Factory | Build established: Gunner 8274 | -5/Factory | Core integrity fell below 50% 8649 | -5/Factory | Reached level 8 8876 | -5/Factory | Self-destructed Last Messages --------------- 08693_ K-01 Serf collects debris. 08700_ Used Protomatter to restore core integrity (+45, depleted) 08701_ K-01 Serf collects debris. 08705_ Used Protomatter to restore core integrity (+75, depleted) 08710_ System corrupted: Component data lost. 08739_ System corrupted: Lrn. Tractor Beam rejected. 08739_ Acquired Lrn. Tractor Beam. 08745_ Upgraded: Ranged Accuracy (+10) 08745_ G-50 Soldier destroyed. 08748_ Critical hit (Burn: +24). 08755_ G-50 Soldier destroyed. 08756_ Acquired 66 matter. 08758_ Kicked A-15 Conveyor out of the way. 08778_ System corrupted: Energy discharge (-156). 08780_ Used Protomatter to restore core integrity (+105, depleted) 08793_ Acquired 11 matter. 08859_ K-01 Serf cleans the Assembly Bed. 08871_ Kinecellerator destroyed. 08871_ Penetrated by Slug. 08874_ K-01 Serf cleans the Assembly Bed. Map ----- +----------------------------------------------------+ | ?????????????????????????????????????????????????? | | ?????????????????????????????????????????????????? | | ?????????????????????????????????????????????????? | | ?????????????????????????????????????????????????? | | ?????????????????????????###???###???????????????? | | ????????????????????????? ?? #???????????????? | | ????????????????????????? ??! #???????????????? | | ???????????????????????? ? #???????????????? | | ????????????????????#? """ """ #???????????????? | | ???###########??????# """ """ #???????????????? | | ???# #??????# """ """ #???????????????? | | ???# """ #??????# #???????????????? | | ???# """"" #??????# """ """ #???????????????? | | ???# """"" #??????# """ """ ##############??? | | ???# #??????# """ """ # "T" #??? | | ???# #??????# #= """" #??? | | ???# #??????# # """" #??? | | ???# !#??????#########+#### """" *#??? | | ???######+########### # """" #### | | ???# o# + | | ### ######### """ + """" """" #### | | ^ #???????# "Y" # """" """" #### | | ^ #### ######### " " # """" """" ## | | "" ####+## ! #[ """" """" ## | | F"" # # # ## | | "" + """ # @ !# ## | | # """ # ############### | | " """ # """ # #?????????????# | | " """ # # h #?????????????# | | " """ # ] # h"""" #?????????????# | | + # """" #?????????????# | | ! ? # # """" #?????????????# | | ?? ## "S # """" #?????????????# | | ???? ## """ # k"""" #?????????????# | | ???## ## "" # """" #?????????????### | | ????? ?#! # #??????????????# | | ????? ?####### #??????????????# | | ?????+???????######## #??????????????# | | ????????????????????#[ ^k ^ ################ | | ????????????????????# ^^]] ## | | ????????????????????# ][! ## | | ????????????????????# ][! ## | | ????????????????????# ## | | ????????????????????# ## | | ????????????????????# ##########+##### ## | | ????????????????????# #?????# # ### | | ????????????????????# #?????# [ """# | | ????????????????????# ####??# """# | | ???????############## # #??# """# | | ???????# ! # # ##??# ! # | +----------------------------------------------------+ Best States ------------- Heat Dissipation 55 Energy Generation 34 Energy Capacity 490 Matter Stores 300 Matter Capacity 300 Sight Range 18 Terrain Scan Density 10 Additional Mass Support 6 Armor Coverage 800 Evasion (%) 63 Kinecelleration 30 Item Schematics ----------------- None Robot Schematics ------------------ None Fabricated ------------ Nothing Repaired ---------- Imp. Heat Sink | 35% | -10/Materials Alien Tech Used ----------------- None Achievements -------------- None Challenges ------------ None RPGLIKE | -11 -10 -10 -7 -7 -5 --------- Run | Yrd Mat Sub Rec Scr Fac Levels Raised 7 | . 1 1 2 1 2 XP Earned 14012 | 3000 2765 1300 2580 1297 3070 XP Spent 13380 | 1350 2000 1400 4200 1030 3400 Upgrades 48 | 4 4 2 27 7 4 Propulsion Slot 1 | 1 . . . . . Utility Slot 3 | . 1 1 . . 1 Weapon Slot 2 | 1 . . . . 1 Core Integrity 28 | . . . 26 2 . Heat Dissipation 5 | . . . . 5 . Energy Generation 1 | . . . 1 . . Mass Support 2 | 1 . 1 . . . Inventory Capacity 1 | 1 . . . . . Ranged Accuracy 5 | . 3 . . . 2 Protomatter Created 1005 | . 331 176 89 234 175 Integrity Restored 2856 | . 614 412 171 1308 351 Core 2687 | . 468 389 171 1308 351 Parts 169 | . 146 23 . . . Protomatter Decayed 5992 | . 23 67 . 5866 36 Game ------ Seed ShadeMobileScrap Manual? 0 Play Time 01:33:09 Cumulative 96.0 hours Start 2025.05.17 @ 00:55:03 End 2025.05.17 @ 02:30:30 Sessions 1 Manual Loads 0 Difficulty Rogue Special Mode Winter2019/RPGLIKE Game No. 44 Rogue 40 Adventurer 4 Explorer 0 Win Type - Total 1 Types 1/0/0/0/0/0/0/0/0/0 Lore% 52 Gallery% 42 Achievement% 46 Wizard Run 0 Options --------- Layout 0 ASCII 0 Keyboard 0 Movement Arrows Keybinds 0 Fullscreen 2 Font 32/SmallcapsGlow Map View 88x55 Zoom Use 0% Tactical HUD 1 Map Filters NONE Filters NONE Steam 1 RUN: 55013356-5bbb-4237-b3f3-ef2f29588e59